fUSD/lending_fUSD_20260405
["ID","MTS","AMOUNT","RATE_DAILY","PERIOD"]
[419777801,1775374260267,-500.0,0.00015672,2]
[419777802,1775374260281,-459.70598754,0.00015672,2]
[419777803,1775374260294,-214.78070273,0.00015672,2]
[419777804,1775374260308,-150.0,0.00015674,2]
[419777805,1775374260322,-352.86,0.00015675,30]
[419777806,1775374260336,-150.0,0.00015679,2]
[419777807,1775374260349,-2201.46384682,0.0001568,2]
[419777808,1775374260363,-437.90351555,0.00015681,2]
[419777809,1775374260376,-150.0,0.00015682,2]
[419777810,1775374260390,-150.0,0.00015683,2]
[419777811,1775374260403,-150.0,0.00015684,2]
[419777812,1775374260416,-150.0,0.00015684,2]
[419777813,1775374260430,-150.0,0.00015684,2]
[419777814,1775374260444,-1536.04360649,0.00015685,2]
[419777815,1775374260457,-368.07161935,0.00015685,2]
[419777816,1775374260471,-200.0,0.00015685,2]
[419777817,1775374260484,-187.78006525,0.00015685,2]
[419777818,1775374260499,-799.54513345,0.00015685,2]
[419777819,1775374260514,-200.0,0.00015685,2]
[419777820,1775374260529,-745.65223616,0.00015685,2]
[419777821,1775374261026,-301.00069851,0.00015685,2]
[419777822,1775374261064,-500.0,0.00015688,2]
[419777823,1775374261077,-200.0,0.00015688,2]
[419777824,1775374261087,-150.0,0.00015692,2]
[419777825,1775374261096,-150.0,0.00015696,2]
[419777826,1775374261106,-1494.0,0.00015698,2]
[419777827,1775374261115,-1048.98200346,0.00015699,2]
[419777828,1775374261125,-150.0,0.000157,2]
[419777829,1775374261134,-178.0,0.000157,2]
[419777830,1775374261143,-878.0,0.000157,2]
[419777831,1775374261153,-800.0,0.000157,5]
[419777832,1775374261162,-306.0,0.000157,2]
[419777833,1775374261172,-1000.0,0.000157,2]
[419777834,1775374261181,-313.0,0.000157,2]
[419777835,1775374261191,-2000.0,0.00015701,2]
[419777836,1775374261200,-4877.0,0.00015706,2]
[419777837,1775374261210,-5888.0,0.00015706,2]
[419777838,1775374261219,-1000.0,0.00015707,2]
[419777839,1775374261228,-1000.0,0.00015707,2]
[419777840,1775374261239,-1000.0,0.00015707,2]
[419777841,1775374261248,-1000.0,0.00015707,2]
[419777842,1775374261259,-1000.0,0.00015707,2]
[419777843,1775374261268,-150.0,0.00015708,2]
[419777844,1775374261281,-150.0,0.0001571,2]
[419777845,1775374261291,-150.0,0.00015714,2]
[419777846,1775374261300,-150.0,0.00015714,2]
[419777847,1775374261312,-150.0,0.00015714,2]
[419777848,1775374261322,-150.0,0.00015721,2]
[419777849,1775374261333,-150.0,0.00015726,2]
[419777850,1775374261342,-150.0,0.00015728,2]
[419777851,1775374261352,-150.0,0.00015728,2]
[419777852,1775374261362,-150.0,0.00015729,2]
[419777853,1775374261371,-1670.35091573,0.0001573,2]
[419777854,1775374261381,-4877.0,0.00015732,2]
[419777855,1775374261391,-150.0,0.00015734,2]
[419777856,1775374261402,-150.0,0.00015742,2]
[419777857,1775374261412,-150.0,0.00015743,2]
[419777858,1775374261421,-150.0,0.00015743,2]
[419777859,1775374261430,-501.1062623,0.00015745,2]
[419777860,1775374261439,-150.0,0.00015746,2]
[419777861,1775374261448,-500.0,0.0001575,2]
[419777862,1775374261458,-200.0,0.0001575,2]
[419777863,1775374261467,-150.0,0.00015752,2]
[419777864,1775374261476,-1000.0,0.00015753,2]
[419777865,1775374261485,-1075.35,0.00015753,2]
[419777866,1775374261495,-2000.0,0.00015753,2]
[419777867,1775374261504,-2000.0,0.00015753,2]
[419777868,1775374261513,-2000.0,0.00015753,2]
[419777869,1775374261522,-2000.0,0.00015753,2]
[419777870,1775374261532,-2000.0,0.00015753,2]
[419777871,1775374261541,-2000.0,0.00015753,2]
[419777872,1775374261551,-1048.98200346,0.00015753,2]
[419777873,1775374261561,-5957.33,0.00015753,2]
[419777874,1775374261571,-150.0,0.0001576,2]
[419777875,1775374261583,-150.0,0.00015761,2]
[419777876,1775374261593,-150.0,0.00015763,2]
[419777877,1775374261603,-150.0,0.00015764,2]
[419777878,1775374261614,-170.53696662,0.0001577,2]
[419777879,1775374261624,-249.23429929,0.0001577,2]
[419777880,1775374261633,-500.0,0.0001577,2]
[419777881,1775374261643,-150.0,0.00015773,2]
[419777882,1775374261652,-150.0,0.00015773,2]
[419777883,1775374261662,-151.39,0.00015779,2]
[419777884,1775374261672,-151.39,0.00015779,2]
[419777885,1775374261683,-151.39,0.00015779,2]
[419777886,1775374261693,-151.39,0.00015779,2]
[419777887,1775374261702,-1500.0,0.00015779,2]
[419777888,1775374261712,-1500.0,0.00015779,2]
[419777889,1775374261722,-1500.0,0.00015779,2]
[419777890,1775374261731,-1500.0,0.00015779,2]
[419777891,1775374261740,-1500.0,0.00015779,2]
[419777892,1775374261750,-1500.0,0.00015779,2]
[419777893,1775374261760,-1500.0,0.00015779,2]
[419777894,1775374261769,-1500.0,0.00015779,2]
[419777895,1775374261778,-1500.0,0.00015779,2]
[419777896,1775374261788,-1544.912597,0.00015779,2]
[419777897,1775374261798,-150.0,0.00015781,2]
[419777898,1775374261807,-150.0,0.00015782,2]
[419777899,1775374261817,-150.0,0.00015784,2]
[419777900,1775374261826,-150.0,0.00015786,2]
[419777901,1775374261836,-508.0,0.00015787,4]
[419777902,1775374261846,-150.0,0.00015793,2]
[419777903,1775374261855,-800.0,0.000158,5]
[419777904,1775374261865,-353.93069988,0.000158,2]
[419777905,1775374261875,-150.0,0.000158,2]
[419777906,1775374261884,-2000.0,0.00015801,2]
[419777907,1775374261893,-177.0,0.00015802,2]
[419777908,1775374261903,-150.0,0.00015802,2]
[419777909,1775374261913,-150.0,0.00015802,2]
[419777910,1775374261923,-150.0,0.00015802,2]
[419777911,1775374261932,-150.0,0.00015802,2]
[419777912,1775374261941,-150.0,0.00015806,2]
[419777913,1775374261950,-1048.98200346,0.00015808,2]
[419777914,1775374261959,-500.0,0.0001581,2]
[419777915,1775374261968,-200.0,0.0001581,2]
[419777916,1775374261977,-150.0,0.00015812,2]
[419777917,1775374261986,-361.0,0.00015815,2]
[419777918,1775374261995,-462.0,0.00015816,2]
[419777919,1775374262005,-1361.0,0.00015818,5]
[419777920,1775374262014,-150.0,0.00015818,2]
[419777921,1775374262024,-150.0,0.00015821,2]
[419777922,1775374262033,-498.0,0.00015823,2]
[419777923,1775374262042,-150.0,0.00015826,2]
[419777924,1775374262053,-150.0,0.00015827,2]
[419777925,1775374262064,-1525.0,0.00015827,2]
[419777926,1775374262073,-154.50523658,0.00015827,2]
[419777927,1775374262082,-161.0,0.00015827,2]
[419777928,1775374262091,-161.0,0.00015827,2]
[419777929,1775374262100,-161.0,0.00015827,2]
[419777930,1775374262110,-157.47547331,0.00015827,2]
[419777931,1775374262119,-166.37279344,0.00015827,2]
[419777932,1775374262128,-350.0,0.00015829,2]
[419777933,1775374262138,-711.0,0.0001583,2]
[419777934,1775374262149,-150.0,0.00015832,2]
[419777935,1775374262157,-150.0,0.00015832,2]
[419777936,1775374262166,-749.82,0.00015833,2]
[419777937,1775374262175,-636.91,0.00015833,2]
[419777938,1775374262184,-500.0,0.00015833,2]
[419777939,1775374262193,-500.0,0.00015833,2]
[419777940,1775374262202,-500.0,0.00015833,2]
[419777941,1775374262212,-600.48,0.00015833,2]
[419777942,1775374262222,-500.0,0.00015833,2]
[419777943,1775374262232,-1418.01,0.00015833,2]
[419777944,1775374262241,-720.34,0.00015833,2]
[419777945,1775374262250,-1201.15,0.00015833,2]
[419777946,1775374262259,-150.0,0.00015836,2]
[419777947,1775374262268,-150.0,0.00015836,2]
[419777948,1775374262278,-150.0,0.00015838,2]
[419777949,1775374262288,-749.82,0.00015839,2]
[419777950,1775374262297,-636.91,0.00015839,2]
[419777951,1775374262306,-500.0,0.00015839,2]
[419777952,1775374262315,-566.37,0.00015839,2]
[419777953,1775374262324,-500.0,0.00015839,2]
[419777954,1775374262333,-728.92,0.00015839,2]
[419777955,1775374262342,-500.0,0.00015839,2]
[419777956,1775374262350,-600.48,0.00015839,2]
[419777957,1775374262359,-568.81904464,0.00015839,2]
[419777958,1775374262368,-1418.01,0.00015839,2]
[419777959,1775374262377,-720.34,0.00015839,2]
[419777960,1775374262386,-1201.15,0.00015839,2]
[419777961,1775374262395,-500.0,0.00015839,2]
[419777962,1775374262404,-433.23440034,0.00015839,2]
[419777963,1775374262417,-534.54,0.00015839,2]
[419777964,1775374262428,-624.84,0.00015839,2]
[419777965,1775374262438,-500.0,0.00015839,2]
[419777966,1775374262447,-989.7,0.00015839,2]
[419777967,1775374262455,-1289.0,0.00015839,2]
[419777968,1775374262464,-342.2279524,0.00015839,2]
[419777969,1775374262473,-590.07729801,0.00015839,2]
[419777970,1775374262482,-500.4,0.00015839,2]
[419777971,1775374262492,-889.96,0.00015839,2]
[419777972,1775374262500,-500.0,0.00015839,2]
[419777973,1775374262509,-500.0,0.00015839,2]
[419777974,1775374262518,-509.57,0.00015839,2]
[419777975,1775374262527,-536.08,0.00015839,2]
[419777976,1775374262536,-698.2,0.00015839,2]
[419777977,1775374262546,-500.0,0.00015839,2]
[419777978,1775374262555,-500.0,0.00015839,2]
[419777979,1775374262564,-500.0,0.00015839,2]
[419777980,1775374262574,-500.0,0.00015839,2]
[419777981,1775374262583,-500.0,0.00015839,2]
[419777982,1775374262592,-500.0,0.00015839,2]
[419777983,1775374262600,-500.0,0.00015839,2]
[419777984,1775374262609,-500.0,0.00015839,2]
[419777985,1775374262619,-500.0,0.00015839,2]
[419777986,1775374262628,-500.0,0.00015839,2]
[419777987,1775374262637,-500.0,0.00015839,2]
[419777988,1775374262646,-500.0,0.00015839,2]
[419777989,1775374262655,-504.0,0.00015839,2]
[419777990,1775374262664,-500.0,0.00015839,2]
[419777991,1775374262674,-166143.042,0.0001584,2]
[419777992,1775374262683,-370.52,0.00015848,2]
[419777993,1775374262695,-150.0,0.00015848,2]
[419777994,1775374262704,-236.0,0.00015851,2]
[419777995,1775374262713,-150.0,0.00015854,2]
[419777996,1775374262723,-150.0,0.00015858,2]
[419777997,1775374262732,-150.0,0.00015861,2]
[419777998,1775374262742,-150.0,0.00015861,2]
[419777999,1775374262752,-1494.0,0.00015862,2]
[419778000,1775374262761,-1048.98200346,0.00015863,2]
[419778001,1775374262770,-150.0,0.00015864,2]
[419778002,1775374262779,-151.0,0.00015866,2]
[419778003,1775374262788,-5888.0,0.00015869,2]
[419778004,1775374262798,-150.0,0.00015869,2]
[419778005,1775374262807,-500.0,0.00015871,2]
[419778006,1775374262817,-200.0,0.00015871,2]
[419778007,1775374262827,-1000.0,0.00015871,2]
[419778008,1775374262836,-624.84,0.00015872,2]
[419778009,1775374262846,-500.4,0.00015872,2]
[419778010,1775374262856,-500.0,0.00015872,2]
[419778011,1775374262865,-334.38,0.00015872,2]
[419778012,1775374262874,-509.57,0.00015872,2]
[419778013,1775374262883,-150.0,0.00015872,2]
[419778014,1775374262892,-347.56040135,0.00015875,2]
[419778015,1775374262902,-449.3229734,0.0001588,2]
[419778016,1775374262911,-711.0,0.00015886,2]
[419778017,1775374262921,-238.91917798,0.0001589,2]
[419778018,1775374262930,-245.0843554,0.0001589,2]
[419778019,1775374262940,-151.01430456,0.0001589,2]
[419778020,1775374262949,-150.60277619,0.0001589,2]
[419778021,1775374262958,-154.24536522,0.0001589,2]
[419778022,1775374262967,-250.0,0.0001589,2]
[419778023,1775374262977,-250.0,0.0001589,2]
[419778024,1775374262986,-2000.0,0.0001589,2]
[419778025,1775374262995,-150.14541726,0.0001589,2]
[419778026,1775374263005,-214.21185671,0.0001589,2]
[419778027,1775374263014,-150.17540857,0.0001589,2]
[419778028,1775374263023,-151.90807937,0.0001589,2]
[419778029,1775374263032,-203.7635245,0.0001589,2]
[419778030,1775374263042,-151.22967101,0.0001589,2]
[419778031,1775374263052,-287.38140471,0.0001589,2]
[419778032,1775374263061,-154.07899059,0.0001589,2]
[419778033,1775374263070,-151.75828689,0.0001589,2]
[419778034,1775374263079,-2500.0,0.0001589,2]
[419778035,1775374263089,-704.40114749,0.0001589,2]
[419778036,1775374263099,-500.0,0.0001589,2]
[419778037,1775374263110,-2500.0,0.0001589,2]
[419778038,1775374263120,-2006.22994168,0.0001589,2]
[419778039,1775374263129,-1947.77606198,0.0001589,2]
[419778040,1775374263140,-2500.0,0.0001589,2]
[419778041,1775374263149,-2500.0,0.0001589,2]
[419778042,1775374263158,-2006.37622858,0.0001589,2]
[419778043,1775374263168,-2500.0,0.0001589,2]
[419778044,1775374263178,-1100.33490613,0.0001589,2]
[419778045,1775374263188,-323.00574972,0.0001589,2]
[419778046,1775374263198,-903.49,0.00015894,2]
[419778047,1775374263207,-4000.0,0.00015895,2]
[419778048,1775374263217,-151.0,0.00015897,2]
[419778049,1775374263227,-151.0,0.00015897,2]
[419778050,1775374263236,-151.0,0.00015897,2]
[419778051,1775374263245,-151.0,0.00015897,2]
[419778052,1775374263254,-151.0,0.00015897,2]
[419778053,1775374263263,-151.0,0.00015897,2]
[419778054,1775374263273,-151.0,0.00015897,2]
[419778055,1775374263282,-500.0,0.00015898,2]
[419778056,1775374263291,-500.0,0.00015898,2]
[419778057,1775374263301,-500.0,0.00015898,2]
[419778058,1775374263311,-500.0,0.00015898,2]
[419778059,1775374263321,-500.0,0.00015898,2]
[419778060,1775374263330,-500.0,0.00015898,2]
[419778061,1775374263340,-500.0,0.00015898,2]
[419778062,1775374263350,-500.0,0.00015898,2]
[419778063,1775374263359,-500.0,0.00015898,2]
[419778064,1775374263368,-500.0,0.00015898,2]
[419778065,1775374263378,-500.0,0.00015898,2]
[419778066,1775374263387,-566.37,0.00015899,2]
[419778067,1775374263397,-728.92,0.00015899,2]
[419778068,1775374263406,-500.0,0.00015899,2]
[419778069,1775374263416,-534.54,0.00015899,2]
[419778070,1775374263425,-989.7,0.00015899,2]
[419778071,1775374263435,-1289.0,0.00015899,2]
[419778072,1775374263444,-889.96,0.00015899,2]
[419778073,1775374263453,-536.08,0.00015899,2]
[419778074,1775374263462,-698.2,0.00015899,2]
[419778075,1775374263472,-500.0,0.00015899,2]
[419778076,1775374263482,-500.0,0.00015899,2]
[419778077,1775374263491,-500.0,0.00015899,2]
[419778078,1775374263501,-500.0,0.00015899,2]
[419778079,1775374263510,-500.0,0.00015899,2]
[419778080,1775374263519,-500.0,0.00015899,2]
[419778081,1775374263529,-566.37,0.00015899,2]
[419778082,1775374263538,-500.0,0.00015899,2]
[419778083,1775374263548,-500.0,0.00015899,2]
[419778084,1775374263557,-500.0,0.00015899,2]
[419778085,1775374263566,-500.0,0.00015899,2]
[419778086,1775374263576,-500.0,0.00015899,2]
[419778087,1775374263585,-500.0,0.00015899,2]
[419778088,1775374263593,-500.0,0.00015899,2]
[419778089,1775374263603,-500.0,0.00015899,2]
[419778090,1775374263612,-500.0,0.00015899,2]
[419778091,1775374263621,-642.21,0.00015899,2]
[419778092,1775374263630,-500.0,0.00015899,2]
[419778093,1775374263640,-500.0,0.00015899,2]
[419778094,1775374263649,-500.0,0.00015899,2]
[419778095,1775374263658,-498.08,0.00015899,2]
[419778096,1775374263668,-500.0,0.00015899,2]
[419778097,1775374263677,-500.0,0.00015899,2]
[419778098,1775374263686,-500.0,0.00015899,2]
[419778099,1775374263695,-24594.73927756,0.000159,2]
[419778100,1775374263704,-1790.62,0.000159,2]
[419778101,1775374263714,-2881200.30537836,0.000159,5]
[419778102,1775374263723,-157.0,0.000159,3]
[419778103,1775374263732,-157.0,0.000159,3]
[419778104,1775374263741,-22971.84461707,0.000159,3]
[419778105,1775374264968,-922.18333418,0.000159,3]
[419778106,1775374265120,-156.571505,0.00010959,2]
[419778107,1775374265130,-149.53560401,0.0001258,2]
[419778108,1775374265415,-156.571505,0.00010959,2]
[419778109,1775374265425,-450.00224801,0.00011218,2]
[419778110,1775374265437,-1280.25008456,0.00011218,2]
[419778111,1775374265448,-964.28520814,0.00011218,2]
[419778112,1775374265459,-1546.60103101,0.00011218,2]
[419778113,1775374265472,-368.64463642,0.00011218,2]
[419778114,1775374265521,-8442.0113521,0.00011218,2]
[419778115,1775374266005,-415.0,0.00010091,2]
[419778116,1775374266109,-2085.0,0.00010091,2]
[419778117,1775374266119,-16762.69878431,0.00011218,2]
[419778118,1775374266137,-4697.10721348,0.00011218,2]
[419778120,1775374332988,640.820255,9.446e-05,2]
[419778121,1775374333011,10000.01,9.446e-05,2]
[419778122,1775374333035,5764.139745,9.446e-05,2]
[419778125,1775374371624,10000.01,9.791e-05,2]
[419778126,1775374371649,10000.01,9.791e-05,2]
[419778127,1775374371673,10000.01,9.791e-05,2]
[419778128,1775374371702,300.0,9.791e-05,2]
[419778129,1775374371728,300.0,9.791e-05,2]
[419778130,1775374389239,2888.176223,7.945e-05,2]
[419778131,1775374391070,-300.0,9.79e-05,2]
[419778132,1775374391099,-300.0,9.79e-05,2]
[419778133,1775374391126,-150.0,9.79e-05,2]
[419778134,1775374397000,-151.0,9.788e-05,2]
[419778135,1775374397030,-151.0,9.788e-05,2]
[419778136,1775374397058,-151.0,9.788e-05,2]
[419778137,1775374397252,-3568.60253406,9.791e-05,2]
[419778138,1775374400976,-10000.01,9.791e-05,2]
[419778139,1775374400994,-10000.01,9.791e-05,2]
[419778140,1775374416853,200.0,9.6e-05,3]
[419778141,1775374418955,500.0,9.7e-05,3]
[419778142,1775374422147,800.0,9.8e-05,3]
[419778143,1775374423155,1100.0,9.9e-05,3]
[419778144,1775374425305,1400.0,0.0001,3]
[419778145,1775374431562,10000.01,9.446e-05,2]
[419778146,1775374431588,5651.08,9.446e-05,2]
[419778147,1775374437669,200.0,9.7e-05,2]
[419778148,1775374495736,1215.994356,9.74e-05,2]
[419778149,1775374550626,377.0,0.00016101,120]
[419778150,1775374674169,400.0,9.6e-05,3]
[419778151,1775374676274,800.0,9.7e-05,3]
[419778152,1775374678368,1200.0,9.8e-05,3]
[419778153,1775374680469,1600.0,9.9e-05,3]
[419778154,1775374682570,2000.0,0.0001,3]
[419778155,1775374693296,150.0,9.494e-05,2]
[419778157,1775374731728,2500.0,9.691e-05,2]
[419778158,1775374739460,1200.0,9.752e-05,2]
[419778159,1775374741943,300.0,9.752e-05,2]
[419778160,1775374766592,-8782.945644,9.753e-05,2]
[419778161,1775374770884,2540.07,9.354e-05,2]
[419778162,1775374772687,-4109.955644,9.753e-05,2]
[419778163,1775374772734,-1780.098712,9.753e-05,2]
[419778164,1775374786501,5192.0867,9.691e-05,2]
[419778165,1775374851273,-1000.0,9.653e-05,2]
[419778166,1775374851302,-300.0,9.772e-05,2]
[419778167,1775374851332,-300.0,9.772e-05,2]
[419778168,1775374851362,-300.0,9.772e-05,2]
[419778169,1775374851391,-1200.0,9.772e-05,2]
[419778170,1775374851743,289.0,9.653e-05,2]
[419778171,1775374862608,300.0,9.772e-05,2]
[419778172,1775374896287,-2325.1708,9.691e-05,2]
[419778173,1775374896397,-9568.5917,9.691e-05,2]
[419778174,1775374896888,-10000.01,9.691e-05,2]
[419778175,1775374896995,-10000.01,9.691e-05,2]
[419778176,1775374897098,-10000.01,9.691e-05,2]
[419778177,1775374897217,-10000.01,9.691e-05,2]
[419778178,1775374897332,-10000.01,9.691e-05,2]
[419778179,1775374897418,-10000.01,9.691e-05,2]
[419778180,1775374899071,-10000.01,9.691e-05,2]
[419778181,1775374923233,-300.0,9.69e-05,2]
[419778182,1775374938375,-2860.1559,9.691e-05,2]
[419778183,1775374938406,-1779.6982,9.691e-05,2]
[419778184,1775374938455,-720.3018,9.691e-05,2]
[419778185,1775374953751,-250.0,9.691e-05,2]
[419778186,1775374969194,-289.0,9.691e-05,2]
[419778187,1775375048490,-4150.8528,9.691e-05,2]
[419778188,1775375050938,1698.3044,9.691e-05,2]
[419778189,1775375050961,1892.96149346,9.691e-05,2]
[419778190,1775375052706,8107.04850654,9.691e-05,2]
[419778191,1775375052731,10000.01,9.691e-05,2]
[419778192,1775375052754,10000.01,9.691e-05,2]
[419778193,1775375052777,10000.01,9.691e-05,2]
[419778194,1775375060219,-8301.7056,9.691e-05,2]
[419778195,1775375060306,-10000.01,9.691e-05,2]
[419778196,1775375063143,152.0,6.437e-05,2]
[419778197,1775375063391,152.0,6.437e-05,2]
[419778198,1775375063653,152.0,6.437e-05,2]
[419778199,1775375063906,152.0,6.437e-05,2]
[419778200,1775375065556,152.0,6.437e-05,2]
[419778201,1775375065608,152.0,6.437e-05,2]
[419778202,1775375065724,152.0,6.437e-05,2]
[419778203,1775375065768,152.0,6.437e-05,2]
[419778204,1775375065832,152.0,6.437e-05,2]
[419778205,1775375065905,152.0,6.437e-05,2]
[419778206,1775375065951,152.0,6.437e-05,2]
[419778207,1775375065994,152.0,6.437e-05,2]
[419778208,1775375066199,152.0,6.437e-05,2]
[419778209,1775375066472,152.0,6.437e-05,2]
[419778210,1775375066732,152.0,6.437e-05,2]
[419778211,1775375066986,152.0,6.437e-05,2]
[419778212,1775375067243,152.0,6.437e-05,2]
[419778213,1775375067498,152.0,6.437e-05,2]
[419778215,1775375147632,4511.57,9.284e-05,2]
[419778216,1775375164755,1600.0,9.359e-05,2]
[419778217,1775375179498,500.0,9.278e-05,2]
[419778218,1775375191762,399.61,9.359e-05,2]
[419778219,1775375218870,289.0,9.653e-05,2]
[419778222,1775375234776,300.0,9.6e-05,3]
[419778223,1775375237660,700.0,9.7e-05,3]
[419778224,1775375238986,1100.0,9.8e-05,3]
[419778225,1775375241090,1500.0,9.9e-05,3]
[419778226,1775375243179,1900.0,0.0001,3]
[419778227,1775375301193,200.0,9.078e-05,2]
[419778228,1775375418021,2011.4,9.591e-05,2]
[419778229,1775375418046,5000.01,9.591e-05,2]
[419778230,1775375418069,5000.01,9.591e-05,2]
[419778231,1775375418092,5000.01,9.591e-05,2]
[419778232,1775375418116,5000.01,9.591e-05,2]
[419778233,1775375418140,5000.01,9.591e-05,2]
[419778234,1775375418642,5000.01,9.591e-05,2]
[419778235,1775375418666,5000.01,9.591e-05,2]
[419778236,1775375418690,5000.01,9.591e-05,2]
[419778237,1775375418715,5000.01,9.591e-05,2]
[419778238,1775375418739,10000.01,9.591e-05,2]
[419778239,1775375418762,10000.01,9.591e-05,2]
[419778240,1775375418785,10000.01,9.591e-05,2]
[419778241,1775375418810,10000.01,9.591e-05,2]
[419778242,1775375418834,10000.01,9.591e-05,2]
[419778243,1775375418858,10000.01,9.591e-05,2]
[419778244,1775375429699,1622.3377,7.449e-05,2]
[419778245,1775375431812,-500.0,9.5e-05,2]
[419778261,1775375432037,-400652.06494304,9.591e-05,2]
[419778262,1775375432048,-1772.54291466,9.591e-05,2]
[419778263,1775375432147,-607.56498033,9.591e-05,2]
[419778273,1775375432478,-1258.9,9.591e-05,2]
[419778275,1775375432489,-391.04665976,9.591e-05,2]
[419778277,1775375432500,-2168.09710004,9.591e-05,2]
[419778278,1775375432602,-238914.92479063,9.591e-05,2]
[419778279,1775375432615,-21144.18220611,9.591e-05,2]
[419778280,1775375432723,-374.94758386,9.591e-05,2]
[419778281,1775375432735,-298.86,9.591e-05,2]
[419778282,1775375436429,-2132.5352889,9.591e-05,2]
[419778299,1775375439290,-3665.0,9.591e-05,2]
[419778300,1775375439302,-1688.60437212,9.591e-05,2]
[419778301,1775375439336,-71099.55150098,9.591e-05,2]
[419778302,1775375439348,-2383.6631228,9.591e-05,2]
[419778303,1775375439360,-2154.79253016,9.591e-05,2]
[419778304,1775375439456,-340.23514888,9.591e-05,2]
[419778305,1775375439539,-21762.52464,9.591e-05,2]
[419778306,1775375439551,-6289.73662505,9.591e-05,2]
[419778307,1775375439598,-580.23789574,9.591e-05,2]
[419778308,1775375439610,-613308.43769694,9.591e-05,2]
[419778309,1775375439620,-329.2585,9.653e-05,2]
[419778310,1775375439630,-250.0,9.671e-05,2]
[419778311,1775375439640,-250.0,9.683e-05,2]
[419778312,1775375439651,-300.0,9.688e-05,2]
[419778313,1775375439662,-1200.0,9.688e-05,2]
[419778314,1775375439672,-300.0,9.688e-05,2]
[419778315,1775375439682,-254.0,9.688e-05,2]
[419778316,1775375439692,-300.0,9.689e-05,2]
[419778317,1775375439702,-300.0,9.689e-05,2]
[419778318,1775375439712,-1200.0,9.689e-05,2]
[419778319,1775375439722,-500.0,9.69e-05,2]
[419778320,1775375439732,-279.14920343,9.69e-05,2]
[419778321,1775375439742,-500.0,9.69e-05,2]
[419778322,1775375439751,-467.89213042,9.69e-05,2]
[419778323,1775375439761,-500.0,9.69e-05,2]
[419778324,1775375439771,-365.50582663,9.69e-05,2]
[419778325,1775375439781,-500.0,9.69e-05,2]
[419778326,1775375439791,-500.0,9.69e-05,2]
[419778327,1775375439802,-500.0,9.69e-05,2]
[419778328,1775375439813,-500.0,9.69e-05,2]
[419778329,1775375439822,-221.0477361,9.69e-05,2]
[419778330,1775375439832,-5000.0,9.69e-05,2]
[419778331,1775375439842,-42257.67099346,9.691e-05,2]
[419778332,1775375439852,-4150.5116,9.691e-05,2]
[419778333,1775375439862,-2500.0,9.691e-05,2]
[419778334,1775375439871,-2070.7998187,9.691e-05,2]
[419778335,1775375439881,-200.25,9.7e-05,2]
[419778336,1775375439891,-5000.0,9.714e-05,2]
[419778337,1775375439901,-2049.42831083,9.714e-05,2]
[419778338,1775375439910,-153.40766799,9.714e-05,2]
[419778339,1775375439921,-163.0,9.753e-05,2]
[419778340,1775375439931,-500.0,9.773e-05,2]
[419778341,1775375439941,-500.90569076,9.773e-05,2]
[419778342,1775375439950,-500.0,9.773e-05,2]
[419778343,1775375439960,-500.0,9.773e-05,2]
[419778344,1775375439969,-151.0,9.788e-05,2]
[419778345,1775375439979,-151.0,9.788e-05,2]
[419778346,1775375439989,-151.0,9.788e-05,2]
[419778347,1775375439999,-151.0,9.788e-05,2]
[419778348,1775375440009,-151.0,9.788e-05,2]
[419778349,1775375440019,-5581.9367904,9.79e-05,2]